[Event "*** Titled Tuesday Blitz"]
[Site "Chess.com"]
[Date "2021.03.09"]
[Round "4"]
[White "Politov_Pavel"]
[Black "Chesswizard_2007"]
[Result "0-1"]
[WhiteElo "2420"]
[BlackElo "2694"]
[TimeControl "180+1"]
[EndTime "10:41:31 PST"]
[Termination "Chesswizard_2007 won on time"]

1. d4 {[%clk 0:03:00.9]} 1... e6 {[%clk 0:02:55.9]} 2. Nf3 {[%clk 0:02:59.5]}
2... f5 {[%clk 0:02:55.2]} 3. g3 {[%clk 0:02:59.2]} 3... Nf6 {[%clk 0:02:55.5]}
4. Bg2 {[%clk 0:03:00.1]} 4... c6 {[%clk 0:02:54.8]} 5. O-O {[%clk 0:03:01]}
5... d5 {[%clk 0:02:55.5]} 6. c4 {[%clk 0:03:01.5]} 6... Bd6 {[%clk 0:02:55.9]}
7. Nc3 {[%clk 0:03:00.7]} 7... O-O {[%clk 0:02:56]} 8. Bf4 {[%clk 0:03:01.3]}
8... Bxf4 {[%clk 0:02:53.9]} 9. gxf4 {[%clk 0:03:02.2]} 9... Nbd7 {[%clk
0:02:54.8]} 10. Qb3 {[%clk 0:03:01.9]} 10... b6 {[%clk 0:02:53.5]} 11. Ne5
{[%clk 0:02:51.6]} 11... Bb7 {[%clk 0:02:51.4]} 12. Rad1 {[%clk 0:02:49.9]}
12... Kh8 {[%clk 0:02:50.7]} 13. f3 {[%clk 0:02:47.6]} 13... Qe7 {[%clk
0:02:45.2]} 14. Kh1 {[%clk 0:02:29.9]} 14... Rg8 {[%clk 0:02:42.7]} 15. e4
{[%clk 0:02:29.2]} 15... Nxe5 {[%clk 0:01:55.4]} 16. fxe5 {[%clk 0:02:23.7]}
16... Nh5 {[%clk 0:01:54.5]} 17. exd5 {[%clk 0:02:16]} 17... cxd5 {[%clk
0:01:55.1]} 18. cxd5 {[%clk 0:02:10.1]} 18... exd5 {[%clk 0:01:51.2]} 19. Nxd5
{[%clk 0:01:50.7]} 19... Qh4 {[%clk 0:01:49.4]} 20. f4 {[%clk 0:01:43.8]} 20...
Rad8 {[%clk 0:01:39.9]} 21. Ne3 {[%clk 0:01:09.9]} 21... Ng3+ {[%clk 0:01:30.7]}
22. Kg1 {[%clk 0:01:08.7]} 22... Ne2+ {[%clk 0:01:30.9]} 23. Kh1 {[%clk
0:01:04.1]} 23... Ng3+ {[%clk 0:01:31.8]} 24. Kg1 {[%clk 0:01:03.1]} 24... Nxf1
{[%clk 0:01:32.7]} 25. Kxf1 {[%clk 0:00:37.5]} 25... Qxf4+ {[%clk 0:01:27.9]}
26. Kg1 {[%clk 0:00:26.8]} 26... Rxd4 {[%clk 0:01:20]} 27. Bxb7 {[%clk
0:00:21.7]} 27... Rxd1+ {[%clk 0:01:17.7]} 28. Nxd1 {[%clk 0:00:22.1]} 28...
Qxe5 {[%clk 0:01:09.1]} 29. Nf2 {[%clk 0:00:19.3]} 29... Rd8 {[%clk 0:01:04.8]}
30. Qf7 {[%clk 0:00:14.7]} 30... h6 {[%clk 0:00:57.7]} 31. Kg2 {[%clk
0:00:13.5]} 31... Kh7 {[%clk 0:00:49.3]} 32. Ba6 {[%clk 0:00:10.4]} 32... Rd6
{[%clk 0:00:42.1]} 33. Bd3 {[%clk 0:00:06.9]} 33... Rxd3 {[%clk 0:00:35.2]} 34.
Nxd3 {[%clk 0:00:06.9]} 34... Qe4+ {[%clk 0:00:35.4]} 35. Kf2 {[%clk 0:00:06.1]}
35... Qxd3 {[%clk 0:00:36.3]} 36. h4 {[%clk 0:00:06.5]} 36... Qd4+ {[%clk
0:00:34.4]} 37. Kf3 {[%clk 0:00:02]} 37... Qe4+ {[%clk 0:00:33.6]} 0-1

[Event "*** Titled Tuesday Blitz"]
[Site "Chess.com"]
[Date "2021.03.09"]
[Round "4"]
[White "federicosellitti"]
[Black "The_filthy"]
[Result "1-0"]
[WhiteElo "2530"]
[BlackElo "2322"]
[TimeControl "180+1"]
[EndTime "10:41:34 PST"]
[Termination "federicosellitti won by checkmate"]

1. e4 {[%clk 0:03:00.9]} 1... e6 {[%clk 0:03:00.3]} 2. b3 {[%clk 0:03:00]} 2...
d5 {[%clk 0:03:00]} 3. Bb2 {[%clk 0:03:00.2]} 3... dxe4 {[%clk 0:02:59.5]} 4.
Nc3 {[%clk 0:03:00.4]} 4... Nf6 {[%clk 0:02:59.9]} 5. Qe2 {[%clk 0:03:00.4]}
5... Be7 {[%clk 0:02:59.5]} 6. Nxe4 {[%clk 0:02:59.8]} 6... a5 {[%clk
0:02:59.2]} 7. Nf3 {[%clk 0:02:53.4]} 7... O-O {[%clk 0:02:59.3]} 8. g4 {[%clk
0:02:52.9]} 8... Nc6 {[%clk 0:02:55.6]} 9. g5 {[%clk 0:02:50.9]} 9... Nd5 {[%clk
0:02:49.7]} 10. d4 {[%clk 0:02:16.1]} 10... a4 {[%clk 0:02:40.3]} 11. a3 {[%clk
0:02:11.7]} 11... axb3 {[%clk 0:02:37]} 12. cxb3 {[%clk 0:02:12.6]} 12... Na5
{[%clk 0:02:30.6]} 13. b4 {[%clk 0:02:07.6]} 13... Nc6 {[%clk 0:02:24.7]} 14. h4
{[%clk 0:01:54.3]} 14... Re8 {[%clk 0:02:18]} 15. h5 {[%clk 0:01:36.4]} 15... e5
{[%clk 0:01:56.5]} 16. g6 {[%clk 0:01:30.8]} 16... f5 {[%clk 0:01:39.7]} 17. h6
{[%clk 0:01:20.4]} 17... hxg6 {[%clk 0:01:31.7]} 18. hxg7 {[%clk 0:01:05]} 18...
fxe4 {[%clk 0:01:21.9]} 19. Nxe5 {[%clk 0:01:05.2]} 19... Nxe5 {[%clk
0:01:20.3]} 20. dxe5 {[%clk 0:01:06.1]} 20... Be6 {[%clk 0:00:37.2]} 21. Qxe4
{[%clk 0:01:03.1]} 21... Kxg7 {[%clk 0:00:35]} 22. Rd1 {[%clk 0:01:00.6]} 22...
c6 {[%clk 0:00:29.1]} 23. Rg1 {[%clk 0:01:00.3]} 23... g5 {[%clk 0:00:22.4]} 24.
Bd3 {[%clk 0:00:57]} 24... Rg8 {[%clk 0:00:17.9]} 25. f4 {[%clk 0:00:43.6]}
25... Kf8 {[%clk 0:00:10.9]} 26. f5 {[%clk 0:00:41.8]} 26... Qd7 {[%clk
0:00:11.4]} 27. fxe6 {[%clk 0:00:39]} 27... Qxe6 {[%clk 0:00:11.6]} 28. Rf1+
{[%clk 0:00:39.7]} 28... Ke8 {[%clk 0:00:11.7]} 29. Qh7 {[%clk 0:00:36.9]} 29...
Rf8 {[%clk 0:00:10.9]} 30. Rxf8+ {[%clk 0:00:36.3]} 30... Bxf8 {[%clk 0:00:11]}
31. Bg6+ {[%clk 0:00:32.5]} 31... Kd8 {[%clk 0:00:10.7]} 32. Qxb7 {[%clk
0:00:32]} 32... Rc8 {[%clk 0:00:09.9]} 33. Be4 {[%clk 0:00:27.4]} 33... Qg4
{[%clk 0:00:07.7]} 34. Rxd5+ {[%clk 0:00:23.3]} 34... cxd5 {[%clk 0:00:06]} 35.
Qxd5+ {[%clk 0:00:24.2]} 35... Ke8 {[%clk 0:00:05.8]} 36. Bg6+ {[%clk
0:00:16.2]} 36... Ke7 {[%clk 0:00:06.1]} 37. Qd6# {[%clk 0:00:16.8]} 1-0

[Event "*** Titled Tuesday Blitz"]
[Site "Chess.com"]
[Date "2021.03.09"]
[Round "4"]
[White "Nf3c5"]
[Black "CrushingKings"]
[Result "1-0"]
[WhiteElo "2608"]
[BlackElo "2398"]
[TimeControl "180+1"]
[EndTime "10:41:35 PST"]
[Termination "Nf3c5 won on time"]

1. d4 {[%clk 0:03:00]} 1... Nf6 {[%clk 0:02:58.9]} 2. Bf4 {[%clk 0:02:59.4]}
2... b6 {[%clk 0:02:56.3]} 3. a4 {[%clk 0:02:58.5]} 3... a5 {[%clk 0:02:55.8]}
4. e3 {[%clk 0:02:58.3]} 4... Bb7 {[%clk 0:02:55.9]} 5. Nf3 {[%clk 0:02:56.1]}
5... g6 {[%clk 0:02:56.2]} 6. Nc3 {[%clk 0:02:52.2]} 6... Bg7 {[%clk 0:02:55.8]}
7. h3 {[%clk 0:02:52]} 7... O-O {[%clk 0:02:47.8]} 8. Be2 {[%clk 0:02:51.6]}
8... d6 {[%clk 0:02:47.8]} 9. O-O {[%clk 0:02:50.6]} 9... Nbd7 {[%clk
0:02:47.4]} 10. Bh2 {[%clk 0:02:47.2]} 10... Nd5 {[%clk 0:02:25]} 11. Nxd5
{[%clk 0:02:35.3]} 11... Bxd5 {[%clk 0:02:25.9]} 12. Nd2 {[%clk 0:02:31.5]}
12... e5 {[%clk 0:02:23.8]} 13. c3 {[%clk 0:02:29.2]} 13... f5 {[%clk
0:02:05.9]} 14. Bc4 {[%clk 0:02:21.9]} 14... Bxc4 {[%clk 0:01:58.6]} 15. Nxc4
{[%clk 0:02:22.8]} 15... Kh8 {[%clk 0:01:43.1]} 16. dxe5 {[%clk 0:02:11.8]}
16... Nxe5 {[%clk 0:01:41.8]} 17. Nxe5 {[%clk 0:02:01.7]} 17... dxe5 {[%clk
0:01:42]} 18. Qe2 {[%clk 0:01:57.1]} 18... Qd5 {[%clk 0:01:34.2]} 19. Rfd1
{[%clk 0:01:56.6]} 19... Qc6 {[%clk 0:01:30.3]} 20. Qd3 {[%clk 0:01:49.1]} 20...
f4 {[%clk 0:01:06.7]} 21. exf4 {[%clk 0:01:32.5]} 21... exf4 {[%clk 0:01:07.6]}
22. Qd7 {[%clk 0:01:29.2]} 22... Qc4 {[%clk 0:00:50.5]} 23. g3 {[%clk
0:01:00.4]} 23... Rae8 {[%clk 0:00:31]} 24. gxf4 {[%clk 0:00:51.9]} 24... Re2
{[%clk 0:00:28.7]} 25. Rd2 {[%clk 0:00:46.4]} 25... Rxd2 {[%clk 0:00:09.4]} 26.
Qxd2 {[%clk 0:00:47.3]} 26... Qe6 {[%clk 0:00:08.3]} 27. Kg2 {[%clk 0:00:43.9]}
27... Qc6+ {[%clk 0:00:04.6]} 28. f3 {[%clk 0:00:41.9]} 28... Bf6 {[%clk
0:00:05.1]} 29. f5 {[%clk 0:00:29.9]} 29... Rd8 {[%clk 0:00:05.1]} 30. Qe2
{[%clk 0:00:29.2]} 30... Re8 {[%clk 0:00:05.1]} 31. Qd3 {[%clk 0:00:27.6]} 31...
Rd8 {[%clk 0:00:03.4]} 32. Qc2 {[%clk 0:00:25.2]} 32... Bg5 {[%clk 0:00:02.8]}
33. Rd1 {[%clk 0:00:24.8]} 33... Rg8 {[%clk 0:00:02.2]} 34. Qe4 {[%clk
0:00:22.5]} 1-0

[Event "*** Titled Tuesday Blitz"]
[Site "Chess.com"]
[Date "2021.03.09"]
[Round "4"]
[White "Herman-NY"]
[Black "UmarovSabir"]
[Result "1-0"]
[WhiteElo "2462"]
[BlackElo "2279"]
[TimeControl "180+1"]
[EndTime "10:41:35 PST"]
[Termination "Herman-NY won on time"]

1. e4 {[%clk 0:03:00.9]} 1... g6 {[%clk 0:02:59.2]} 2. d4 {[%clk 0:03:00.4]}
2... Bg7 {[%clk 0:02:59]} 3. Nc3 {[%clk 0:03:00.7]} 3... c6 {[%clk 0:02:59.1]}
4. Bc4 {[%clk 0:03:00.1]} 4... d5 {[%clk 0:02:57.2]} 5. exd5 {[%clk 0:03:01]}
5... b5 {[%clk 0:02:56.9]} 6. Bb3 {[%clk 0:02:59.9]} 6... b4 {[%clk 0:02:56.8]}
7. Na4 {[%clk 0:03:00.5]} 7... cxd5 {[%clk 0:02:56.4]} 8. Nc5 {[%clk 0:03:00.9]}
8... Nf6 {[%clk 0:02:55.5]} 9. a3 {[%clk 0:03:00.6]} 9... bxa3 {[%clk
0:02:53.6]} 10. Rxa3 {[%clk 0:03:01.5]} 10... O-O {[%clk 0:02:53.4]} 11. Nf3
{[%clk 0:02:53]} 11... Nbd7 {[%clk 0:02:38.4]} 12. Nd3 {[%clk 0:02:41.4]} 12...
Nb6 {[%clk 0:02:19.3]} 13. O-O {[%clk 0:02:23.2]} 13... Nc4 {[%clk 0:02:09.8]}
14. Ra1 {[%clk 0:02:18]} 14... Bf5 {[%clk 0:01:59.4]} 15. Re1 {[%clk 0:02:12.8]}
15... h6 {[%clk 0:01:34.6]} 16. Nde5 {[%clk 0:01:50.2]} 16... Na5 {[%clk
0:01:10.7]} 17. Rxa5 {[%clk 0:01:45.5]} 17... Qxa5 {[%clk 0:01:10.2]} 18. Nc6
{[%clk 0:01:46.1]} 18... Qc7 {[%clk 0:00:51.6]} 19. Nxe7+ {[%clk 0:01:45.9]}
19... Kh8 {[%clk 0:00:50.2]} 20. Nxf5 {[%clk 0:01:46.2]} 20... gxf5 {[%clk
0:00:50.6]} 21. Ne5 {[%clk 0:01:32.4]} 21... Rae8 {[%clk 0:00:34.3]} 22. Bf4
{[%clk 0:01:29.3]} 22... Qa5 {[%clk 0:00:27.6]} 23. Re3 {[%clk 0:01:23.4]} 23...
Ng4 {[%clk 0:00:19.9]} 24. Rh3 {[%clk 0:00:49.3]} 24... f6 {[%clk 0:00:19.3]}
25. Ng6+ {[%clk 0:00:44.8]} 25... Kg8 {[%clk 0:00:13.1]} 26. Bd2 {[%clk
0:00:23.1]} 26... Qb6 {[%clk 0:00:08.6]} 27. Bxd5+ {[%clk 0:00:21.7]} 27... Rf7
{[%clk 0:00:08.9]} 28. Bc3 {[%clk 0:00:16.8]} 28... Rd8 {[%clk 0:00:01.7]} 29.
Bb3 {[%clk 0:00:13.5]} 29... Kh7 {[%clk 0:00:01.2]} 30. Bxf7 {[%clk 0:00:12.8]}
1-0

[Event "*** Titled Tuesday Blitz"]
[Site "Chess.com"]
[Date "2021.03.09"]
[Round "4"]
[White "TorFredrikKaasen"]
[Black "ehrenfeld"]
[Result "1-0"]
[WhiteElo "2701"]
[BlackElo "2509"]
[TimeControl "180+1"]
[EndTime "10:41:36 PST"]
[Termination "TorFredrikKaasen won by resignation"]

1. e4 {[%clk 0:03:00.9]} 1... e5 {[%clk 0:02:59.3]} 2. Nf3 {[%clk 0:03:01.1]}
2... Nc6 {[%clk 0:02:57.8]} 3. Bb5 {[%clk 0:03:01]} 3... a6 {[%clk 0:02:57.9]}
4. Ba4 {[%clk 0:03:01]} 4... Nf6 {[%clk 0:02:58.1]} 5. O-O {[%clk 0:03:01.1]}
5... Be7 {[%clk 0:02:58.1]} 6. Re1 {[%clk 0:03:00.4]} 6... b5 {[%clk 0:02:57.9]}
7. Bb3 {[%clk 0:03:01]} 7... d6 {[%clk 0:02:58.5]} 8. c3 {[%clk 0:03:01.3]} 8...
O-O {[%clk 0:02:58.6]} 9. h3 {[%clk 0:03:02]} 9... Na5 {[%clk 0:02:58.7]} 10.
Bc2 {[%clk 0:03:02]} 10... c5 {[%clk 0:02:59.2]} 11. d4 {[%clk 0:03:02.7]} 11...
Qc7 {[%clk 0:02:59.3]} 12. d5 {[%clk 0:03:02.9]} 12... Bd7 {[%clk 0:02:58.5]}
13. b3 {[%clk 0:03:02.9]} 13... g6 {[%clk 0:02:58]} 14. Be3 {[%clk 0:02:50.6]}
14... Nh5 {[%clk 0:02:54.1]} 15. Qe2 {[%clk 0:02:48.6]} 15... Rfb8 {[%clk
0:02:37.5]} 16. Nbd2 {[%clk 0:02:47.3]} 16... c4 {[%clk 0:02:33.6]} 17. b4
{[%clk 0:02:43.1]} 17... Nb7 {[%clk 0:02:33.2]} 18. a4 {[%clk 0:02:33.1]} 18...
Nd8 {[%clk 0:02:31.5]} 19. a5 {[%clk 0:02:32.1]} 19... f6 {[%clk 0:02:28.3]} 20.
Kh2 {[%clk 0:02:26.6]} 20... Nf7 {[%clk 0:02:28.1]} 21. g3 {[%clk 0:02:12.8]}
21... Rf8 {[%clk 0:02:26.1]} 22. Nh4 {[%clk 0:02:02.5]} 22... Rae8 {[%clk
0:02:24]} 23. Rf1 {[%clk 0:01:55.9]} 23... Qc8 {[%clk 0:02:09.1]} 24. Nf5 {[%clk
0:01:41.5]} 24... gxf5 {[%clk 0:01:59.3]} 25. Qxh5 {[%clk 0:01:41]} 25... fxe4
{[%clk 0:01:56]} 26. g4 {[%clk 0:01:27.8]} 26... f5 {[%clk 0:01:21.7]} 27. gxf5
{[%clk 0:01:27.6]} 27... Bxf5 {[%clk 0:01:20.9]} 28. Rg1+ {[%clk 0:01:27.3]}
28... Kh8 {[%clk 0:01:20.2]} 29. Bxe4 {[%clk 0:01:24.5]} 29... Bxe4 {[%clk
0:01:15.4]} 30. Nxe4 {[%clk 0:01:25.4]} 30... Qd7 {[%clk 0:00:47]} 31. Rg4
{[%clk 0:01:19.2]} 31... Bd8 {[%clk 0:00:42.1]} 32. Rag1 {[%clk 0:01:17]} 32...
Rg8 {[%clk 0:00:41.8]} 33. Bb6 {[%clk 0:01:03.7]} 33... Rxg4 {[%clk 0:00:36.9]}
34. Rxg4 {[%clk 0:01:04.6]} 34... Rg8 {[%clk 0:00:32.2]} 35. Bxd8 {[%clk
0:01:04.3]} 35... Rxg4 {[%clk 0:00:07.7]} 36. Nf6 {[%clk 0:00:49.7]} 36... Rh4
{[%clk 0:00:06.2]} 37. Qxh4 {[%clk 0:00:46.7]} 37... Qf5 {[%clk 0:00:06.1]} 38.
Ng4 {[%clk 0:00:35.8]} 38... Ng5 {[%clk 0:00:03.7]} 1-0

[Event "*** Titled Tuesday Blitz"]
[Site "Chess.com"]
[Date "2021.03.09"]
[Round "4"]
[White "Anton_Demchenko"]
[Black "Oligan22"]
[Result "1-0"]
[WhiteElo "2881"]
[BlackElo "2477"]
[TimeControl "180+1"]
[EndTime "10:41:38 PST"]
[Termination "Anton_Demchenko won on time"]

1. e4 {[%clk 0:03:00.9]} 1... c6 {[%clk 0:03:00.1]} 2. d4 {[%clk 0:03:00.7]}
2... d5 {[%clk 0:03:00.6]} 3. Nd2 {[%clk 0:03:01.6]} 3... dxe4 {[%clk
0:03:00.5]} 4. Nxe4 {[%clk 0:03:02.5]} 4... Nf6 {[%clk 0:03:01.2]} 5. Nxf6+
{[%clk 0:03:02.8]} 5... exf6 {[%clk 0:03:02.1]} 6. Nf3 {[%clk 0:03:03.5]} 6...
Bd6 {[%clk 0:03:02.7]} 7. Bd3 {[%clk 0:03:04.2]} 7... O-O {[%clk 0:03:03.1]} 8.
O-O {[%clk 0:03:05.1]} 8... Bg4 {[%clk 0:03:01.5]} 9. h3 {[%clk 0:03:05.6]} 9...
Bh5 {[%clk 0:03:01.4]} 10. Bf5 {[%clk 0:03:06.3]} 10... Re8 {[%clk 0:02:52.5]}
11. Qd3 {[%clk 0:03:06.8]} 11... Bg6 {[%clk 0:02:51.6]} 12. Nh4 {[%clk 0:03:07]}
12... Nd7 {[%clk 0:02:49.2]} 13. Qf3 {[%clk 0:03:04]} 13... Nf8 {[%clk
0:02:46.3]} 14. c3 {[%clk 0:02:52.6]} 14... Bc7 {[%clk 0:02:44.6]} 15. g3 {[%clk
0:02:51.3]} 15... Ne6 {[%clk 0:02:40.2]} 16. Nxg6 {[%clk 0:02:48.2]} 16... hxg6
{[%clk 0:02:41.1]} 17. Bc2 {[%clk 0:02:48.6]} 17... Qd7 {[%clk 0:02:39.2]} 18.
h4 {[%clk 0:02:48.1]} 18... Rad8 {[%clk 0:02:32.2]} 19. Be3 {[%clk 0:02:45.7]}
19... Nf8 {[%clk 0:02:22.5]} 20. Rfe1 {[%clk 0:02:40.5]} 20... Bd6 {[%clk
0:02:20.8]} 21. Rad1 {[%clk 0:02:39.1]} 21... Qh3 {[%clk 0:02:11.4]} 22. Bd3
{[%clk 0:02:29.6]} 22... Qd7 {[%clk 0:02:10]} 23. Bc4 {[%clk 0:02:28.9]} 23...
Qc7 {[%clk 0:01:40.5]} 24. Kg2 {[%clk 0:02:26.2]} 24... a5 {[%clk 0:01:37]} 25.
a4 {[%clk 0:02:24.4]} 25... Ne6 {[%clk 0:01:30.5]} 26. h5 {[%clk 0:02:24.5]}
26... gxh5 {[%clk 0:01:30.4]} 27. Qxh5 {[%clk 0:02:25]} 27... g6 {[%clk
0:01:12.1]} 28. Qh4 {[%clk 0:02:25.3]} 28... Bf8 {[%clk 0:00:34.4]} 29. Rh1
{[%clk 0:02:13.7]} 29... Bg7 {[%clk 0:00:34.3]} 30. Bh6 {[%clk 0:02:04.2]} 30...
Bh8 {[%clk 0:00:11.6]} 31. Bf8 {[%clk 0:02:03.6]} 31... Kxf8 {[%clk 0:00:10.5]}
32. Qxh8+ {[%clk 0:02:03.2]} 32... Ke7 {[%clk 0:00:11]} 33. Qh6 {[%clk
0:01:49.7]} 33... Rh8 {[%clk 0:00:11.6]} 34. Qe3 {[%clk 0:01:42.3]} 34... Rxh1
{[%clk 0:00:10.5]} 35. Rxh1 {[%clk 0:01:43.2]} 35... Qd6 {[%clk 0:00:10.8]} 36.
Rh7 {[%clk 0:01:43.9]} 36... b6 {[%clk 0:00:09.5]} 37. Kg1 {[%clk 0:01:30.9]}
37... Qd7 {[%clk 0:00:10.1]} 38. Qe4 {[%clk 0:01:22.1]} 38... Qd6 {[%clk
0:00:10.4]} 39. Qxg6 {[%clk 0:01:18.2]} 39... Rf8 {[%clk 0:00:11]} 40. Qe4
{[%clk 0:01:14]} 40... Qd7 {[%clk 0:00:11.2]} 41. f4 {[%clk 0:01:07.9]} 41... b5
{[%clk 0:00:10.7]} 42. Ba2 {[%clk 0:01:01.4]} 42... Kd8 {[%clk 0:00:10.7]} 43.
axb5 {[%clk 0:00:53.9]} 43... cxb5 {[%clk 0:00:08.2]} 44. Qa8+ {[%clk
0:00:51.4]} 44... Ke7 {[%clk 0:00:08.3]} 45. Qxa5 {[%clk 0:00:51.8]} 45... Rd8
{[%clk 0:00:01.8]} 46. Qb4+ {[%clk 0:00:48.8]} 1-0

[Event "*** Titled Tuesday Blitz"]
[Site "Chess.com"]
[Date "2021.03.09"]
[Round "4"]
[White "anon219"]
[Black "ChessSwole"]
[Result "1-0"]
[WhiteElo "2860"]
[BlackElo "2539"]
[TimeControl "180+1"]
[EndTime "10:41:41 PST"]
[Termination "anon219 won on time"]

1. e4 {[%clk 0:03:00.9]} 1... c5 {[%clk 0:02:59]} 2. Nf3 {[%clk 0:02:59.7]} 2...
e6 {[%clk 0:02:59.1]} 3. d4 {[%clk 0:02:59.3]} 3... cxd4 {[%clk 0:03:00]} 4.
Nxd4 {[%clk 0:02:59.8]} 4... a6 {[%clk 0:03:00.2]} 5. Bd3 {[%clk 0:02:57.1]}
5... Bc5 {[%clk 0:02:59]} 6. Nb3 {[%clk 0:02:56]} 6... Ba7 {[%clk 0:02:58.4]} 7.
Qe2 {[%clk 0:02:45.7]} 7... Nc6 {[%clk 0:02:57.4]} 8. O-O {[%clk 0:02:43]} 8...
Nge7 {[%clk 0:02:56.9]} 9. Be3 {[%clk 0:02:39.3]} 9... Bxe3 {[%clk 0:02:52.3]}
10. Qxe3 {[%clk 0:02:40.2]} 10... O-O {[%clk 0:02:48.6]} 11. Rd1 {[%clk
0:02:39.5]} 11... Qc7 {[%clk 0:02:35.1]} 12. c4 {[%clk 0:02:36.9]} 12... Ne5
{[%clk 0:02:32.2]} 13. c5 {[%clk 0:02:28.1]} 13... d6 {[%clk 0:02:19.3]} 14.
cxd6 {[%clk 0:02:24.5]} 14... Qxd6 {[%clk 0:02:20.2]} 15. Be2 {[%clk 0:02:24.9]}
15... Qc7 {[%clk 0:02:15]} 16. Nc3 {[%clk 0:02:25]} 16... N7c6 {[%clk
0:02:07.8]} 17. Rac1 {[%clk 0:02:24.1]} 17... Bd7 {[%clk 0:02:03]} 18. f4 {[%clk
0:02:17.3]} 18... Ng6 {[%clk 0:02:02.8]} 19. g3 {[%clk 0:02:17.9]} 19... Rfd8
{[%clk 0:01:59.8]} 20. Bf3 {[%clk 0:02:14.3]} 20... Be8 {[%clk 0:01:57.5]} 21.
e5 {[%clk 0:02:11.9]} 21... Rxd1+ {[%clk 0:01:57.3]} 22. Rxd1 {[%clk 0:02:10.9]}
22... Rd8 {[%clk 0:01:54.8]} 23. Rxd8 {[%clk 0:02:01.7]} 23... Qxd8 {[%clk
0:01:54]} 24. h4 {[%clk 0:02:02.3]} 24... Nge7 {[%clk 0:01:51.4]} 25. Be4 {[%clk
0:01:57.9]} 25... h6 {[%clk 0:01:29.3]} 26. Kf2 {[%clk 0:01:55.4]} 26... b6
{[%clk 0:01:01.3]} 27. Nd2 {[%clk 0:01:49.6]} 27... Nb4 {[%clk 0:00:51]} 28. a3
{[%clk 0:01:47.3]} 28... Nbd5 {[%clk 0:00:47.7]} 29. Nxd5 {[%clk 0:01:47.5]}
29... exd5 {[%clk 0:00:37.6]} 30. Bd3 {[%clk 0:01:47.1]} 30... d4 {[%clk
0:00:36.9]} 31. Qe4 {[%clk 0:01:44]} 31... g6 {[%clk 0:00:36.9]} 32. Nf3 {[%clk
0:01:40]} 32... Nf5 {[%clk 0:00:32.5]} 33. g4 {[%clk 0:01:21.8]} 33... Nxh4
{[%clk 0:00:31.7]} 34. Nxd4 {[%clk 0:01:21.6]} 34... a5 {[%clk 0:00:18]} 35. Kg3
{[%clk 0:01:20.9]} 35... Kf8 {[%clk 0:00:15.3]} 36. e6 {[%clk 0:01:20.3]} 36...
g5 {[%clk 0:00:13]} 37. Qe5 {[%clk 0:01:09]} 37... f6 {[%clk 0:00:11.2]} 38. Qe3
{[%clk 0:00:54.7]} 38... Qd6 {[%clk 0:00:10.4]} 39. Kh3 {[%clk 0:00:51.1]} 39...
gxf4 {[%clk 0:00:08.7]} 40. Qe4 {[%clk 0:00:48.8]} 40... Ng6 {[%clk 0:00:08]}
41. Nf5 {[%clk 0:00:46.1]} 41... Qe5 {[%clk 0:00:08.2]} 42. Qb7 {[%clk
0:00:27.9]} 1-0

[Event "*** Titled Tuesday Blitz"]
[Site "Chess.com"]
[Date "2021.03.09"]
[Round "4"]
[White "BanjoKazooieN64"]
[Black "Papa12341234"]
[Result "0-1"]
[WhiteElo "2410"]
[BlackElo "2609"]
[TimeControl "180+1"]
[EndTime "10:41:42 PST"]
[Termination "Papa12341234 won by resignation"]

1. e4 {[%clk 0:03:00.9]} 1... c6 {[%clk 0:02:51.3]} 2. Bc4 {[%clk 0:02:57.3]}
2... d5 {[%clk 0:02:50.1]} 3. Bb3 {[%clk 0:02:57.6]} 3... dxe4 {[%clk 0:02:47]}
4. Qh5 {[%clk 0:02:57.5]} 4... e6 {[%clk 0:02:45.7]} 5. Nc3 {[%clk 0:02:55.4]}
5... Nf6 {[%clk 0:02:45.6]} 6. Qh4 {[%clk 0:02:55.6]} 6... Be7 {[%clk
0:02:45.2]} 7. Nxe4 {[%clk 0:02:55.6]} 7... Nxe4 {[%clk 0:02:40.8]} 8. Qxe4
{[%clk 0:02:55.2]} 8... Nd7 {[%clk 0:02:41.7]} 9. d4 {[%clk 0:02:49.1]} 9... Nf6
{[%clk 0:02:39.6]} 10. Qd3 {[%clk 0:02:48.6]} 10... O-O {[%clk 0:02:38.5]} 11.
Nf3 {[%clk 0:02:48.1]} 11... c5 {[%clk 0:02:38.3]} 12. Be3 {[%clk 0:02:45.7]}
12... cxd4 {[%clk 0:02:38.3]} 13. Bxd4 {[%clk 0:02:45.5]} 13... b6 {[%clk
0:02:25]} 14. O-O {[%clk 0:02:37.5]} 14... Bb7 {[%clk 0:02:25.1]} 15. Rad1
{[%clk 0:02:36.8]} 15... Qc8 {[%clk 0:02:23.4]} 16. Ng5 {[%clk 0:02:24.6]} 16...
Qc6 {[%clk 0:02:08.2]} 17. Qh3 {[%clk 0:01:52.3]} 17... h6 {[%clk 0:02:06.2]}
18. Nf3 {[%clk 0:01:52.4]} 18... Rad8 {[%clk 0:02:00.9]} 19. c3 {[%clk
0:01:52.2]} 19... Qe4 {[%clk 0:01:53.5]} 20. Rfe1 {[%clk 0:01:48.8]} 20... Qg6
{[%clk 0:01:46.1]} 21. Ne5 {[%clk 0:01:41.7]} 21... Qh5 {[%clk 0:01:24.1]} 22.
Qxh5 {[%clk 0:01:38.4]} 22... Nxh5 {[%clk 0:01:25]} 23. Ba4 {[%clk 0:01:24.4]}
23... Nf4 {[%clk 0:01:16.7]} 24. Nc6 {[%clk 0:01:20.6]} 24... Bxc6 {[%clk
0:01:15.8]} 25. Bxc6 {[%clk 0:01:20.3]} 25... Bf6 {[%clk 0:01:14.8]} 26. Bxf6
{[%clk 0:01:02.7]} 26... gxf6 {[%clk 0:01:15.7]} 27. Be4 {[%clk 0:00:49]} 27...
f5 {[%clk 0:01:11.5]} 28. Bc2 {[%clk 0:00:46.6]} 28... Kg7 {[%clk 0:01:07.3]}
29. g3 {[%clk 0:00:45.3]} 29... Ng6 {[%clk 0:00:50.8]} 30. f4 {[%clk 0:00:41.8]}
30... Kf6 {[%clk 0:00:48.6]} 31. Kf2 {[%clk 0:00:40.7]} 31... h5 {[%clk
0:00:48.7]} 32. Kf3 {[%clk 0:00:24.6]} 32... h4 {[%clk 0:00:41.7]} 33. g4 {[%clk
0:00:24.9]} 33... fxg4+ {[%clk 0:00:35.1]} 34. Kxg4 {[%clk 0:00:25.8]} 34... Ne7
{[%clk 0:00:35.4]} 35. Kxh4 {[%clk 0:00:22.2]} 35... Nd5 {[%clk 0:00:34]} 36.
Kg3 {[%clk 0:00:20.5]} 36... Rg8+ {[%clk 0:00:31.4]} 37. Kf3 {[%clk 0:00:20.8]}
37... Rh8 {[%clk 0:00:32.1]} 38. Re2 {[%clk 0:00:17.7]} 38... Rh3+ {[%clk
0:00:31.3]} 39. Kg4 {[%clk 0:00:17.8]} 39... Rdh8 {[%clk 0:00:29.3]} 0-1